[Event "Late-Titled-Tuesday-Blitz-May-07-2024"]
[Site "Chess.com"]
[Date "2024.05.07"]
[Round "1"]
[White "Itay121"]
[Black "Magicmaster17"]
[Result "1-0"]
[WhiteElo "2545"]
[BlackElo "2909"]
[TimeControl "180+1"]
[EndTime "14:05:30 PDT"]
[Termination "Itay121 won by checkmate"]

1. e4 {[%clk 0:02:59.7]} 1... e6 {[%clk 0:02:59.1]} 2. d4 {[%clk 0:02:57.9]}
2... d5 {[%clk 0:03:00]} 3. Nd2 {[%clk 0:02:56.6]} 3... Be7 {[%clk 0:02:59.4]}
4. Ngf3 {[%clk 0:02:54.9]} 4... Nf6 {[%clk 0:02:59]} 5. Bd3 {[%clk 0:02:54.1]}
5... c5 {[%clk 0:02:58.7]} 6. e5 {[%clk 0:02:53.9]} 6... Nfd7 {[%clk 0:02:58.6]}
7. c3 {[%clk 0:02:54]} 7... Nc6 {[%clk 0:02:58.9]} 8. O-O {[%clk 0:02:51.8]}
8... h5 {[%clk 0:02:58.9]} 9. Re1 {[%clk 0:02:49.2]} 9... g5 {[%clk 0:02:58.3]}
10. dxc5 {[%clk 0:02:45.3]} 10... g4 {[%clk 0:02:57.5]} 11. Nd4 {[%clk 0:02:43]}
11... Ndxe5 {[%clk 0:02:54.3]} 12. N2b3 {[%clk 0:02:37.6]} 12... Nxd3 {[%clk
0:02:22.8]} 13. Qxd3 {[%clk 0:02:38.5]} 13... Qc7 {[%clk 0:02:09.2]} 14. Nb5
{[%clk 0:02:36]} 14... Qb8 {[%clk 0:02:08.4]} 15. c4 {[%clk 0:02:25.8]} 15...
dxc4 {[%clk 0:01:56.9]} 16. Qc3 {[%clk 0:02:26.1]} 16... Rg8 {[%clk 0:01:52.5]}
17. Nd2 {[%clk 0:02:20.8]} 17... a6 {[%clk 0:01:47.1]} 18. Nd6+ {[%clk
0:02:20.5]} 18... Bxd6 {[%clk 0:01:46.6]} 19. cxd6 {[%clk 0:02:21.4]} 19... Qxd6
{[%clk 0:01:33.6]} 20. Ne4 {[%clk 0:02:20.9]} 20... Qd4 {[%clk 0:01:07.2]} 21.
Nf6+ {[%clk 0:02:20.4]} 21... Kd8 {[%clk 0:00:56.8]} 22. Qxd4+ {[%clk
0:02:07.6]} 22... Nxd4 {[%clk 0:00:56.5]} 23. Nxg8 {[%clk 0:02:08.5]} 23... b5
{[%clk 0:00:43.7]} 24. Rd1 {[%clk 0:01:54.7]} 24... e5 {[%clk 0:00:43]} 25. Be3
{[%clk 0:01:53.4]} 25... Kc7 {[%clk 0:00:42.5]} 26. Bxd4 {[%clk 0:01:51.4]}
26... exd4 {[%clk 0:00:43.4]} 27. Rxd4 {[%clk 0:01:52.1]} 27... Bf5 {[%clk
0:00:41.7]} 28. Nf6 {[%clk 0:01:51.1]} 28... Kc6 {[%clk 0:00:36.7]} 29. Rad1
{[%clk 0:01:49.3]} 29... Be6 {[%clk 0:00:33.4]} 30. Rd6+ {[%clk 0:01:48.6]}
30... Kc5 {[%clk 0:00:33.3]} 31. a3 {[%clk 0:01:41.9]} 31... b4 {[%clk
0:00:30.7]} 32. Nd7+ {[%clk 0:01:38.3]} 32... Kb5 {[%clk 0:00:20]} 33. Rb6+
{[%clk 0:01:38.8]} 33... Ka5 {[%clk 0:00:20.3]} 34. axb4+ {[%clk 0:01:38.1]}
34... Ka4 {[%clk 0:00:20.6]} 35. Nc5# {[%clk 0:01:38.8]} 1-0

[Event "Late-Titled-Tuesday-Blitz-May-07-2024"]
[Site "Chess.com"]
[Date "2024.05.07"]
[Round "1"]
[White "ab-lsv"]
[Black "bipe137"]
[Result "0-1"]
[WhiteElo "2382"]
[BlackElo "2683"]
[TimeControl "180+1"]
[EndTime "14:05:30 PDT"]
[Termination "bipe137 won by resignation"]

1. d4 {[%clk 0:02:59.4]} 1... d5 {[%clk 0:02:57.1]} 2. c4 {[%clk 0:02:59.7]}
2... e6 {[%clk 0:02:57]} 3. Nc3 {[%clk 0:03:00]} 3... a6 {[%clk 0:02:57]} 4.
cxd5 {[%clk 0:02:59.4]} 4... exd5 {[%clk 0:02:57.9]} 5. Bf4 {[%clk 0:02:59.6]}
5... c6 {[%clk 0:02:58.2]} 6. e3 {[%clk 0:02:59.5]} 6... Bd6 {[%clk 0:02:58.5]}
7. Bxd6 {[%clk 0:02:55.4]} 7... Qxd6 {[%clk 0:02:59.4]} 8. Bd3 {[%clk
0:02:55.7]} 8... Ne7 {[%clk 0:02:57.8]} 9. Qc2 {[%clk 0:02:52.2]} 9... Nd7
{[%clk 0:02:57]} 10. Nge2 {[%clk 0:02:52]} 10... Nf6 {[%clk 0:02:55.6]} 11. O-O
{[%clk 0:02:48.9]} 11... O-O {[%clk 0:02:55.7]} 12. Rad1 {[%clk 0:02:43.5]}
12... Re8 {[%clk 0:02:53.6]} 13. Ng3 {[%clk 0:02:31.1]} 13... g6 {[%clk
0:02:49.3]} 14. f3 {[%clk 0:02:21.1]} 14... h5 {[%clk 0:02:47]} 15. Kh1 {[%clk
0:01:53.7]} 15... h4 {[%clk 0:02:45]} 16. Nge2 {[%clk 0:01:53.2]} 16... Nh5
{[%clk 0:02:37.5]} 17. e4 {[%clk 0:01:47.4]} 17... Qf6 {[%clk 0:02:35]} 18. e5
{[%clk 0:01:42.8]} 18... Qh8 {[%clk 0:02:30.6]} 19. Kg1 {[%clk 0:01:39]} 19...
Bf5 {[%clk 0:02:29.5]} 20. f4 {[%clk 0:01:31.1]} 20... Ng7 {[%clk 0:02:25.9]}
21. Bxf5 {[%clk 0:01:24.9]} 21... Nexf5 {[%clk 0:02:24.9]} 22. Qd3 {[%clk
0:01:24.2]} 22... Ne6 {[%clk 0:02:20.2]} 23. Na4 {[%clk 0:01:16.9]} 23... Qh5
{[%clk 0:02:12.8]} 24. Rf3 {[%clk 0:01:12.8]} 24... Kg7 {[%clk 0:02:12.2]} 25.
b4 {[%clk 0:01:04.4]} 25... b5 {[%clk 0:02:10.6]} 26. Nc5 {[%clk 0:00:54.2]}
26... Nxc5 {[%clk 0:02:11.1]} 27. bxc5 {[%clk 0:00:52.6]} 27... a5 {[%clk
0:02:11.7]} 28. Kf2 {[%clk 0:00:49]} 28... Nh6 {[%clk 0:02:07.4]} 29. h3 {[%clk
0:00:46.1]} 29... Qf5 {[%clk 0:02:04.4]} 30. Qd2 {[%clk 0:00:41.2]} 30... a4
{[%clk 0:02:00.9]} 31. a3 {[%clk 0:00:38.1]} 31... Reb8 {[%clk 0:02:00.2]} 32.
Qb4 {[%clk 0:00:34.5]} 32... Qc2 {[%clk 0:01:58.7]} 33. Rb1 {[%clk 0:00:24.5]}
33... Nf5 {[%clk 0:01:56.6]} 34. Qc3 {[%clk 0:00:12.3]} 34... Qxb1 {[%clk
0:01:53.7]} 0-1

[Event "Late-Titled-Tuesday-Blitz-May-07-2024"]
[Site "Chess.com"]
[Date "2024.05.07"]
[Round "1"]
[White "MikeSailer"]
[Black "yaguigor"]
[Result "0-1"]
[WhiteElo "2122"]
[BlackElo "2582"]
[TimeControl "180+1"]
[EndTime "14:05:32 PDT"]
[Termination "yaguigor won on time"]

1. d4 {[%clk 0:02:58.4]} 1... d5 {[%clk 0:02:58.9]} 2. Nf3 {[%clk 0:02:57.2]}
2... Nf6 {[%clk 0:02:57.9]} 3. Bf4 {[%clk 0:02:56.8]} 3... c5 {[%clk 0:02:56.7]}
4. e3 {[%clk 0:02:56.9]} 4... Nc6 {[%clk 0:02:52.3]} 5. Bb5 {[%clk 0:02:46.6]}
5... Qa5+ {[%clk 0:02:41.8]} 6. Nc3 {[%clk 0:02:45.4]} 6... Ne4 {[%clk
0:02:41.6]} 7. O-O {[%clk 0:02:26.6]} 7... Nxc3 {[%clk 0:02:39.9]} 8. Bxc6+
{[%clk 0:02:25.6]} 8... bxc6 {[%clk 0:02:30.5]} 9. bxc3 {[%clk 0:02:25.8]} 9...
f6 {[%clk 0:02:26.6]} 10. c4 {[%clk 0:02:07.5]} 10... Ba6 {[%clk 0:02:20.6]} 11.
Nd2 {[%clk 0:01:45.8]} 11... g6 {[%clk 0:02:15.3]} 12. Nb3 {[%clk 0:01:32.2]}
12... Qc3 {[%clk 0:02:14]} 13. cxd5 {[%clk 0:01:12]} 13... Bxf1 {[%clk
0:02:11.8]} 14. Qxf1 {[%clk 0:01:10.2]} 14... cxd4 {[%clk 0:02:06.7]} 15. Nxd4
{[%clk 0:00:47.3]} 15... Bg7 {[%clk 0:01:57.5]} 16. Ne6 {[%clk 0:00:37.3]} 16...
Kf7 {[%clk 0:01:55.9]} 17. Nxg7 {[%clk 0:00:29.2]} 17... Kxg7 {[%clk 0:01:54.8]}
18. dxc6 {[%clk 0:00:25.5]} 18... e5 {[%clk 0:01:53.5]} 19. Bg3 {[%clk
0:00:24.8]} 19... Qxc6 {[%clk 0:01:52.7]} 20. h4 {[%clk 0:00:20.2]} 20... h5
{[%clk 0:01:51.1]} 21. Qd3 {[%clk 0:00:07.6]} 21... Rhd8 {[%clk 0:01:47.9]} 22.
Qa3 {[%clk 0:00:05.8]} 22... Rd7 {[%clk 0:01:46.8]} 23. Rb1 {[%clk 0:00:04.8]}
23... Qxc2 {[%clk 0:01:44.1]} 24. Kh2 {[%clk 0:00:04.1]} 24... Qxb1 {[%clk
0:01:41.7]} 0-1

[Event "Late-Titled-Tuesday-Blitz-May-07-2024"]
[Site "Chess.com"]
[Date "2024.05.07"]
[Round "1"]
[White "ToddBryant"]
[Black "SRob2003"]
[Result "1/2-1/2"]
[WhiteElo "2388"]
[BlackElo "2664"]
[TimeControl "180+1"]
[EndTime "14:05:37 PDT"]
[Termination "Game drawn by agreement"]

1. e4 {[%clk 0:02:54.1]} 1... c5 {[%clk 0:02:50.7]} 2. Nf3 {[%clk 0:02:54]} 2...
d6 {[%clk 0:02:51.3]} 3. d4 {[%clk 0:02:54.1]} 3... cxd4 {[%clk 0:02:51.8]} 4.
Nxd4 {[%clk 0:02:55]} 4... Nf6 {[%clk 0:02:51.9]} 5. Nc3 {[%clk 0:02:55.6]} 5...
a6 {[%clk 0:02:52.4]} 6. Bg5 {[%clk 0:02:55.8]} 6... e5 {[%clk 0:02:52.9]} 7.
Nf5 {[%clk 0:02:50.4]} 7... Bxf5 {[%clk 0:02:51.1]} 8. Bxf6 {[%clk 0:02:51]}
8... Qxf6 {[%clk 0:02:48.8]} 9. Nd5 {[%clk 0:02:51.4]} 9... Qd8 {[%clk
0:02:44.1]} 10. exf5 {[%clk 0:02:47.7]} 10... Nd7 {[%clk 0:02:44.3]} 11. g3
{[%clk 0:02:47.2]} 11... Be7 {[%clk 0:02:41.8]} 12. Bg2 {[%clk 0:02:47.2]} 12...
Bg5 {[%clk 0:02:41.2]} 13. O-O {[%clk 0:02:45.1]} 13... O-O {[%clk 0:02:40.5]}
14. a4 {[%clk 0:02:30.6]} 14... Rc8 {[%clk 0:02:39.8]} 15. a5 {[%clk 0:02:28.4]}
15... Re8 {[%clk 0:02:36.7]} 16. h4 {[%clk 0:02:23.7]} 16... Bh6 {[%clk
0:02:36.9]} 17. Ra3 {[%clk 0:02:12.4]} 17... e4 {[%clk 0:02:35.9]} 18. Re1
{[%clk 0:02:06.6]} 18... Nf6 {[%clk 0:02:35.7]} 19. Nxf6+ {[%clk 0:02:00]} 19...
Qxf6 {[%clk 0:02:36.6]} 20. Bxe4 {[%clk 0:01:58]} 20... Qxb2 {[%clk 0:02:31.5]}
21. Rb3 {[%clk 0:01:53.7]} 21... Qe5 {[%clk 0:02:30.9]} 22. Rb1 {[%clk
0:01:16.7]} 22... Qxa5 {[%clk 0:02:21.4]} 23. Bxb7 {[%clk 0:01:14.6]} 23...
Rxe1+ {[%clk 0:01:59.4]} 24. Qxe1 {[%clk 0:01:15.5]} 24... Qxe1+ {[%clk
0:01:58.7]} 25. Rxe1 {[%clk 0:01:16.4]} 25... Rb8 {[%clk 0:01:56.6]} 26. Bxa6
{[%clk 0:01:13.1]} 26... Kf8 {[%clk 0:01:57]} 27. c4 {[%clk 0:01:11.7]} 27...
Bd2 {[%clk 0:01:54.1]} 28. Re2 {[%clk 0:01:09.4]} 28... Bb4 {[%clk 0:01:49.8]}
29. Bb5 {[%clk 0:01:08.6]} 29... Bc5 {[%clk 0:01:49.1]} 30. Kg2 {[%clk
0:01:00.4]} 30... f6 {[%clk 0:01:49.1]} 31. Bc6 {[%clk 0:00:51.8]} 31... Rc8
{[%clk 0:01:39.8]} 32. Bd5 {[%clk 0:00:51]} 32... Re8 {[%clk 0:01:40.1]} 33.
Rxe8+ {[%clk 0:00:48.3]} 33... Kxe8 {[%clk 0:01:40.2]} 34. f4 {[%clk 0:00:49.2]}
34... h6 {[%clk 0:01:39.3]} 35. Kf3 {[%clk 0:00:50.1]} 35... Kf8 {[%clk
0:01:38.8]} 36. h5 {[%clk 0:00:48.2]} 36... Ke7 {[%clk 0:01:39.7]} 37. g4 {[%clk
0:00:48.7]} 37... Kd7 {[%clk 0:01:39.7]} 38. g5 {[%clk 0:00:48.6]} 38... Kc7
{[%clk 0:01:40.4]} 39. Ke4 {[%clk 0:00:47]} 39... Kd7 {[%clk 0:01:39.4]} 40. g6
{[%clk 0:00:28.8]} 1/2-1/2

[Event "Late-Titled-Tuesday-Blitz-May-07-2024"]
[Site "Chess.com"]
[Date "2024.05.07"]
[Round "1"]
[White "Hirna2005"]
[Black "jk13"]
[Result "1-0"]
[WhiteElo "2334"]
[BlackElo "2629"]
[TimeControl "180+1"]
[EndTime "14:05:37 PDT"]
[Termination "Hirna2005 won by resignation"]

1. e4 {[%clk 0:03:00.9]} 1... e5 {[%clk 0:02:55.3]} 2. Nf3 {[%clk 0:03:00.3]}
2... Nc6 {[%clk 0:02:56]} 3. Bc4 {[%clk 0:03:00.4]} 3... Bc5 {[%clk 0:02:55.9]}
4. c3 {[%clk 0:03:00.5]} 4... Nf6 {[%clk 0:02:54.5]} 5. d3 {[%clk 0:03:00.7]}
5... O-O {[%clk 0:02:53.7]} 6. a4 {[%clk 0:03:00.2]} 6... d5 {[%clk 0:02:52]} 7.
exd5 {[%clk 0:02:57.8]} 7... Nxd5 {[%clk 0:02:52.9]} 8. b4 {[%clk 0:02:54.3]}
8... Be7 {[%clk 0:02:51.8]} 9. O-O {[%clk 0:02:52.5]} 9... a6 {[%clk 0:02:21.5]}
10. Re1 {[%clk 0:02:51]} 10... Bf6 {[%clk 0:02:20.2]} 11. Qb3 {[%clk 0:02:43.8]}
11... Nb6 {[%clk 0:02:17.4]} 12. Nbd2 {[%clk 0:02:39.1]} 12... Nxc4 {[%clk
0:02:06.4]} 13. Nxc4 {[%clk 0:02:39]} 13... Qxd3 {[%clk 0:01:51]} 14. Ncxe5
{[%clk 0:02:32.7]} 14... Nxe5 {[%clk 0:01:51.9]} 15. Nxe5 {[%clk 0:02:32.5]}
15... Bxe5 {[%clk 0:01:52.8]} 16. Rxe5 {[%clk 0:02:31.9]} 16... Be6 {[%clk
0:01:53.6]} 17. Rxe6 {[%clk 0:02:16.8]} 17... fxe6 {[%clk 0:01:54.5]} 18. Qxe6+
{[%clk 0:02:16.6]} 18... Kh8 {[%clk 0:01:54.3]} 19. Be3 {[%clk 0:02:11.7]} 19...
Qxc3 {[%clk 0:01:41.6]} 20. Rb1 {[%clk 0:02:06]} 20... Rae8 {[%clk 0:01:35.9]}
21. Qd7 {[%clk 0:02:04.8]} 21... Rd8 {[%clk 0:01:29.1]} 22. Qe7 {[%clk
0:02:00.2]} 22... Rfe8 {[%clk 0:01:24.4]} 23. Qf7 {[%clk 0:02:00.2]} 23... Qxb4
{[%clk 0:01:15.6]} 24. Qxe8+ {[%clk 0:01:57.4]} 24... Rxe8 {[%clk 0:01:14.2]}
25. Rxb4 {[%clk 0:01:57.5]} 25... b6 {[%clk 0:01:11.1]} 26. Kf1 {[%clk
0:01:56.1]} 26... a5 {[%clk 0:01:02.5]} 27. Rd4 {[%clk 0:01:52.3]} 27... h6
{[%clk 0:00:54.9]} 28. Rd7 {[%clk 0:01:52.1]} 28... c5 {[%clk 0:00:54.2]} 29.
Rd6 {[%clk 0:01:49.7]} 29... Rb8 {[%clk 0:00:54.4]} 30. Bf4 {[%clk 0:01:49.2]}
30... Rb7 {[%clk 0:00:55]} 31. Rc6 {[%clk 0:01:47.7]} 31... b5 {[%clk 0:00:52]}
32. Rxc5 {[%clk 0:01:45.2]} 32... b4 {[%clk 0:00:43.1]} 33. Be5 {[%clk
0:01:45.1]} 33... b3 {[%clk 0:00:41.8]} 34. Rc1 {[%clk 0:01:43.9]} 34... Rb4
{[%clk 0:00:37.5]} 35. Rb1 {[%clk 0:01:43.7]} 35... Kg8 {[%clk 0:00:35]} 36. Bc3
{[%clk 0:01:40.2]} 36... Rxa4 {[%clk 0:00:33.6]} 37. Rxb3 {[%clk 0:01:40.4]}
37... Ra2 {[%clk 0:00:33.1]} 38. Rb7 {[%clk 0:01:37.2]} 38... a4 {[%clk
0:00:31.5]} 39. Rxg7+ {[%clk 0:01:36]} 39... Kf8 {[%clk 0:00:31.4]} 40. Ra7
{[%clk 0:01:35.8]} 40... a3 {[%clk 0:00:31.9]} 41. Rxa3 {[%clk 0:01:31.4]} 1-0

[Event "Late-Titled-Tuesday-Blitz-May-07-2024"]
[Site "Chess.com"]
[Date "2024.05.07"]
[Round "1"]
[White "DeTimmerman"]
[Black "gabduschew"]
[Result "1-0"]
[WhiteElo "2756"]
[BlackElo "2435"]
[TimeControl "180+1"]
[EndTime "14:05:41 PDT"]
[Termination "DeTimmerman won by resignation"]

1. b4 {[%clk 0:03:00]} 1... d5 {[%clk 0:02:57.6]} 2. Bb2 {[%clk 0:02:58.2]} 2...
Nf6 {[%clk 0:02:57.5]} 3. b5 {[%clk 0:02:57.3]} 3... c6 {[%clk 0:02:57.3]} 4. a4
{[%clk 0:02:56.2]} 4... g6 {[%clk 0:02:53]} 5. e3 {[%clk 0:02:55.8]} 5... Bg7
{[%clk 0:02:53.1]} 6. c4 {[%clk 0:02:54]} 6... O-O {[%clk 0:02:51.6]} 7. Nf3
{[%clk 0:02:53.3]} 7... Bf5 {[%clk 0:02:47.8]} 8. Be2 {[%clk 0:02:52.7]} 8...
Nbd7 {[%clk 0:02:43.9]} 9. O-O {[%clk 0:02:51.9]} 9... Re8 {[%clk 0:02:44.1]}
10. d4 {[%clk 0:02:51.2]} 10... Ne4 {[%clk 0:02:43.6]} 11. Nc3 {[%clk
0:02:51.1]} 11... Ndf6 {[%clk 0:02:40.5]} 12. Qb3 {[%clk 0:02:48]} 12... Nxc3
{[%clk 0:02:39]} 13. Bxc3 {[%clk 0:02:48.9]} 13... Ne4 {[%clk 0:02:36.7]} 14.
Bb2 {[%clk 0:02:47.3]} 14... Bg4 {[%clk 0:02:35.2]} 15. Rfd1 {[%clk 0:02:46.8]}
15... Rb8 {[%clk 0:02:27.4]} 16. h3 {[%clk 0:02:43.2]} 16... Bf5 {[%clk
0:01:57.1]} 17. Rac1 {[%clk 0:02:42]} 17... Qd7 {[%clk 0:01:38.7]} 18. Ne5
{[%clk 0:02:39.2]} 18... Bxe5 {[%clk 0:01:38.5]} 19. dxe5 {[%clk 0:02:40.1]}
19... dxc4 {[%clk 0:01:03.8]} 20. Bxc4 {[%clk 0:02:41]} 20... Qc7 {[%clk
0:00:53.2]} 21. Bxf7+ {[%clk 0:02:40.4]} 21... Kf8 {[%clk 0:00:52.7]} 22. Bxe8
{[%clk 0:02:32]} 22... Rxe8 {[%clk 0:00:53.6]} 23. e6 {[%clk 0:02:21.6]} 23...
c5 {[%clk 0:00:37.1]} 24. g4 {[%clk 0:01:55.7]} 24... c4 {[%clk 0:00:26.2]} 25.
Qxc4 {[%clk 0:01:53.3]} 25... Qxc4 {[%clk 0:00:25.5]} 26. Rxc4 {[%clk
0:01:54.2]} 26... Nd6 {[%clk 0:00:19.1]} 27. Rf4 {[%clk 0:01:53.8]} 27... Rc8
{[%clk 0:00:14.5]} 28. gxf5 {[%clk 0:01:52.3]} 28... gxf5 {[%clk 0:00:15.4]} 29.
Rxd6 {[%clk 0:01:42]} 29... exd6 {[%clk 0:00:09.3]} 30. Rxf5+ {[%clk 0:01:42.3]}
30... Ke7 {[%clk 0:00:08.9]} 31. Rf7+ {[%clk 0:01:42.8]} 31... Kxe6 {[%clk
0:00:09.3]} 32. Rxb7 {[%clk 0:01:43.2]} 32... Rc2 {[%clk 0:00:08.8]} 33. Bd4
{[%clk 0:01:43.3]} 33... Rc1+ {[%clk 0:00:05.4]} 34. Kg2 {[%clk 0:01:43.6]}
34... h5 {[%clk 0:00:04.9]} 35. Rxa7 {[%clk 0:01:43.3]} 1-0

[Event "Late-Titled-Tuesday-Blitz-May-07-2024"]
[Site "Chess.com"]
[Date "2024.05.07"]
[Round "1"]
[White "MeisterJabo"]
[Black "Abund"]
[Result "0-1"]
[WhiteElo "2431"]
[BlackElo "2749"]
[TimeControl "180+1"]
[EndTime "14:05:41 PDT"]
[Termination "Abund won by resignation"]

1. e4 {[%clk 0:03:00.9]} 1... c6 {[%clk 0:03:00]} 2. d4 {[%clk 0:02:58.8]} 2...
d5 {[%clk 0:02:58.4]} 3. exd5 {[%clk 0:02:59.7]} 3... cxd5 {[%clk 0:02:58.6]} 4.
Bd3 {[%clk 0:03:00.4]} 4... Nc6 {[%clk 0:02:59.3]} 5. c3 {[%clk 0:02:58.5]} 5...
Nf6 {[%clk 0:02:59.7]} 6. Bf4 {[%clk 0:02:58.2]} 6... Bg4 {[%clk 0:02:59.3]} 7.
Nf3 {[%clk 0:02:58.3]} 7... e6 {[%clk 0:02:58.8]} 8. Nbd2 {[%clk 0:02:57.1]}
8... Bd6 {[%clk 0:02:58.9]} 9. Bxd6 {[%clk 0:02:57.3]} 9... Qxd6 {[%clk
0:02:59.8]} 10. O-O {[%clk 0:02:57.6]} 10... O-O {[%clk 0:03:00.1]} 11. Re1
{[%clk 0:02:57.7]} 11... a6 {[%clk 0:02:52.2]} 12. Qb1 {[%clk 0:02:57.2]} 12...
Bxf3 {[%clk 0:02:42.9]} 13. Nxf3 {[%clk 0:02:57.1]} 13... Qc7 {[%clk 0:02:34.8]}
14. Ne5 {[%clk 0:02:53.7]} 14... g6 {[%clk 0:02:34.1]} 15. f4 {[%clk 0:02:42.3]}
15... Kg7 {[%clk 0:02:13.8]} 16. Re3 {[%clk 0:02:37.8]} 16... Nxe5 {[%clk
0:02:12.3]} 17. fxe5 {[%clk 0:02:36.4]} 17... Ng4 {[%clk 0:02:06.6]} 18. Rg3
{[%clk 0:01:57.6]} 18... f5 {[%clk 0:02:01.9]} 19. exf6+ {[%clk 0:01:55.6]}
19... Nxf6 {[%clk 0:02:02]} 20. Qe1 {[%clk 0:01:56.2]} 20... Rae8 {[%clk
0:01:46.9]} 21. Re3 {[%clk 0:01:34.8]} 21... e5 {[%clk 0:01:29.1]} 22. dxe5
{[%clk 0:00:47.3]} 22... Ng4 {[%clk 0:01:21.4]} 23. Rg3 {[%clk 0:00:47.9]} 23...
Qc5+ {[%clk 0:00:49]} 0-1

[Event "Late-Titled-Tuesday-Blitz-May-07-2024"]
[Site "Chess.com"]
[Date "2024.05.07"]
[Round "1"]
[White "Oleg_Papayan"]
[Black "Nechitaylo_Nikita"]
[Result "1-0"]
[WhiteElo "2658"]
[BlackElo "2349"]
[TimeControl "180+1"]
[EndTime "14:05:42 PDT"]
[Termination "Oleg_Papayan won by resignation"]

1. c4 {[%clk 0:03:00.9]} 1... c5 {[%clk 0:02:59]} 2. b3 {[%clk 0:03:01.2]} 2...
Nc6 {[%clk 0:02:59.1]} 3. Bb2 {[%clk 0:03:01.7]} 3... e5 {[%clk 0:02:57.7]} 4.
g3 {[%clk 0:03:00.6]} 4... d6 {[%clk 0:02:57.6]} 5. Bg2 {[%clk 0:03:01]} 5... g6
{[%clk 0:02:58.4]} 6. e3 {[%clk 0:03:00.8]} 6... Bg7 {[%clk 0:02:59.1]} 7. Ne2
{[%clk 0:03:01.3]} 7... Nge7 {[%clk 0:02:58.8]} 8. O-O {[%clk 0:03:01.9]} 8...
O-O {[%clk 0:02:59.4]} 9. Nbc3 {[%clk 0:03:02.1]} 9... Rb8 {[%clk 0:02:52.4]}
10. d3 {[%clk 0:03:02]} 10... Be6 {[%clk 0:02:52.5]} 11. f4 {[%clk 0:03:02.1]}
11... d5 {[%clk 0:02:37]} 12. cxd5 {[%clk 0:02:52.9]} 12... Nxd5 {[%clk
0:02:37.9]} 13. Nxd5 {[%clk 0:02:50.2]} 13... Bxd5 {[%clk 0:02:38.8]} 14. e4
{[%clk 0:02:50.7]} 14... Be6 {[%clk 0:02:29]} 15. f5 {[%clk 0:02:51.1]} 15...
gxf5 {[%clk 0:02:12.5]} 16. exf5 {[%clk 0:02:51.2]} 16... Bd5 {[%clk 0:02:13.2]}
17. Be4 {[%clk 0:02:49]} 17... Bh6 {[%clk 0:01:59.8]} 18. Nc3 {[%clk 0:02:47.3]}
18... Bxe4 {[%clk 0:01:51.4]} 19. Nxe4 {[%clk 0:02:48.2]} 19... f6 {[%clk
0:00:57.2]} 20. Kh1 {[%clk 0:02:36.2]} 20... Qd5 {[%clk 0:00:54.9]} 21. Qf3
{[%clk 0:02:32.2]} 21... Rbd8 {[%clk 0:00:49.9]} 22. Rad1 {[%clk 0:02:31.5]}
22... Nb4 {[%clk 0:00:38.8]} 23. Ba3 {[%clk 0:02:12.1]} 23... Nxd3 {[%clk
0:00:35.9]} 24. Bxc5 {[%clk 0:02:07.8]} 24... Rf7 {[%clk 0:00:23.4]} 25. Be7
{[%clk 0:01:51.9]} 25... Nf2+ {[%clk 0:00:18]} 26. Kg2 {[%clk 0:01:52.3]} 26...
Qxe4 {[%clk 0:00:11.4]} 27. Rxd8+ {[%clk 0:01:51.3]} 27... Kg7 {[%clk 0:00:12]}
28. Rxf2 {[%clk 0:01:46.1]} 28... Qxf3+ {[%clk 0:00:12.3]} 29. Kxf3 {[%clk
0:01:46.2]} 29... Rxe7 {[%clk 0:00:13.2]} 30. Ke4 {[%clk 0:01:46.5]} 30... Rc7
{[%clk 0:00:04.1]} 31. Rf3 {[%clk 0:01:41.6]} 31... Kf7 {[%clk 0:00:01.8]} 32.
Rfd3 {[%clk 0:01:40.4]} 32... Bf8 {[%clk 0:00:01.3]} 33. R3d7+ {[%clk
0:01:39.9]} 1-0

[Event "Late-Titled-Tuesday-Blitz-May-07-2024"]
[Site "Chess.com"]
[Date "2024.05.07"]
[Round "1"]
[White "super_emi_26"]
[Black "Redzishchess"]
[Result "1-0"]
[WhiteElo "2858"]
[BlackElo "2504"]
[TimeControl "180+1"]
[EndTime "14:05:45 PDT"]
[Termination "super_emi_26 won by resignation"]

1. b3 {[%clk 0:02:58.4]} 1... a5 {[%clk 0:02:58.1]} 2. Bb2 {[%clk 0:02:58]} 2...
a4 {[%clk 0:02:58.3]} 3. b4 {[%clk 0:02:55.9]} 3... Nf6 {[%clk 0:02:52]} 4. Nf3
{[%clk 0:02:55.2]} 4... g6 {[%clk 0:02:52.3]} 5. d4 {[%clk 0:02:53.5]} 5... Bg7
{[%clk 0:02:50.7]} 6. e3 {[%clk 0:02:53.3]} 6... O-O {[%clk 0:02:50.1]} 7. a3
{[%clk 0:02:53.1]} 7... d6 {[%clk 0:02:48.7]} 8. Nbd2 {[%clk 0:02:53.7]} 8...
Nbd7 {[%clk 0:02:47.7]} 9. Be2 {[%clk 0:02:54.1]} 9... e5 {[%clk 0:02:46.4]} 10.
dxe5 {[%clk 0:02:55]} 10... Ng4 {[%clk 0:02:46.4]} 11. h3 {[%clk 0:02:54.5]}
11... Ngxe5 {[%clk 0:02:46.5]} 12. Qc1 {[%clk 0:02:54.9]} 12... b6 {[%clk
0:02:40.3]} 13. O-O {[%clk 0:02:54.9]} 13... Bb7 {[%clk 0:02:38.9]} 14. c4
{[%clk 0:02:55.5]} 14... Qe7 {[%clk 0:02:32.5]} 15. Rd1 {[%clk 0:02:54.7]} 15...
h6 {[%clk 0:02:20.4]} 16. Bc3 {[%clk 0:02:51.2]} 16... f5 {[%clk 0:02:12.8]} 17.
Qb2 {[%clk 0:02:50.8]} 17... f4 {[%clk 0:02:09.2]} 18. exf4 {[%clk 0:02:45.9]}
18... Rxf4 {[%clk 0:02:10.1]} 19. Re1 {[%clk 0:02:45.1]} 19... Raf8 {[%clk
0:02:05.9]} 20. Rad1 {[%clk 0:02:44.5]} 20... Qf6 {[%clk 0:01:52.2]} 21. Rc1
{[%clk 0:02:40.6]} 21... Qf5 {[%clk 0:01:41.4]} 22. c5 {[%clk 0:02:32]} 22...
Nxf3+ {[%clk 0:01:33.8]} 23. Nxf3 {[%clk 0:02:31.8]} 23... Bxc3 {[%clk
0:01:34.1]} 24. Rxc3 {[%clk 0:02:28.1]} 24... dxc5 {[%clk 0:01:29.3]} 25. bxc5
{[%clk 0:02:29]} 25... Nxc5 {[%clk 0:01:28.5]} 26. Bc4+ {[%clk 0:02:26.1]} 26...
Bd5 {[%clk 0:01:17.3]} 27. Re5 {[%clk 0:02:25]} 27... Bxc4 {[%clk 0:01:02.8]}
28. Rxf5 {[%clk 0:02:24.6]} 28... R8xf5 {[%clk 0:01:03.7]} 29. Qd2 {[%clk
0:02:19.1]} 29... Bd5 {[%clk 0:00:52.1]} 30. Re3 {[%clk 0:02:15.5]} 30... Ne4
{[%clk 0:00:42]} 31. Qe1 {[%clk 0:02:14.1]} 31... c6 {[%clk 0:00:38.4]} 32. Nd4
{[%clk 0:02:12]} 32... Rg5 {[%clk 0:00:24.3]} 33. f3 {[%clk 0:02:11.9]} 33...
Nd6 {[%clk 0:00:15.6]} 34. Ne6 {[%clk 0:02:11.5]} 34... Bxe6 {[%clk 0:00:10.1]}
35. Rxe6 {[%clk 0:02:12.4]} 35... Rd5 {[%clk 0:00:10.4]} 36. Kh2 {[%clk
0:02:07.6]} 36... Kf7 {[%clk 0:00:10.3]} 37. Re7+ {[%clk 0:02:07.4]} 37... Kf8
{[%clk 0:00:10.9]} 38. Qe6 {[%clk 0:02:03.8]} 38... Rd2 {[%clk 0:00:10.5]} 39.
Rh7 {[%clk 0:02:01.3]} 39... Nf7 {[%clk 0:00:09.6]} 40. Qxg6 {[%clk 0:01:52.9]}
40... Rxf3 {[%clk 0:00:08.8]} 41. Rxf7+ {[%clk 0:01:53.4]} 41... Rxf7 {[%clk
0:00:08.7]} 42. Qxh6+ {[%clk 0:01:54.1]} 1-0